bitfinex/quotes_BTCUSD_20230118
["timestamp","ask_amount","ask_price","bid_price","bid_amount"]
[1674027301177,0.00574035,21269.0,21268.0,1.23532122]
[1674027301978,0.00574035,21269.0,21268.0,1.34807568]
[1674027302237,0.00574035,21269.0,21268.0,1.34794265]
[1674027302930,0.00574035,21269.0,21268.0,1.3579831]
[1674027303199,0.00574035,21269.0,21268.0,1.6579831]
[1674027306039,0.00574035,21269.0,21268.0,2.13518479]
[1674027306289,0.00574035,21269.0,21268.0,2.35578479]
[1674027311483,0.24574035,21269.0,21268.0,2.35578479]
[1674027312171,0.24574035,21269.0,21268.0,2.58103038]
[1674027312395,0.24574035,21269.0,21268.0,2.58103302]
[1674027312623,0.24574035,21269.0,21268.0,2.24538479]
[1674027313645,0.24574035,21269.0,21268.0,2.24525769]
[1674027313881,0.24574035,21269.0,21268.0,1.96372544]
[1674027314136,0.24574035,21269.0,21268.0,2.24525976]
[1674027314658,0.074,21270.0,21269.0,0.22917515]
[1674027314922,0.074,21270.0,21269.0,2.05711084]
[1674027315180,0.074,21270.0,21269.0,2.91009799]
[1674027315969,0.4932052,21274.0,21269.0,2.91009799]
[1674027316228,0.078,21270.0,21269.0,2.45434943]
[1674027316490,0.078,21270.0,21269.0,2.89455817]
[1674027317014,0.72966296,21276.0,21269.0,2.77778546]
[1674027317270,0.079,21274.0,21272.0,0.11254924]
[1674027317526,0.83112363,21276.0,21273.0,0.950298]
[1674027317786,0.83112363,21276.0,21273.0,0.97502987]
[1674027318043,0.42922363,21276.0,21273.0,0.97502987]
[1674027318564,0.42922363,21276.0,21273.0,0.940158]
[1674027319080,0.43722363,21276.0,21273.0,0.940158]
[1674027319348,0.42922363,21276.0,21273.0,0.940158]
[1674027319634,0.50522363,21276.0,21273.0,0.941158]
[1674027320412,1.17268659,21276.0,21273.0,0.941158]
[1674027320671,0.84492363,21276.0,21273.0,0.941158]
[1674027321681,1.17268659,21276.0,21273.0,0.941158]
[1674027321976,0.84492363,21276.0,21273.0,0.941158]
[1674027322519,0.84492363,21276.0,21274.0,0.0010713]
[1674027322784,0.84492363,21276.0,21274.0,0.4711163]
[1674027323302,0.76892363,21276.0,21274.0,0.4711163]
[1674027323680,0.76892363,21276.0,21274.0,0.4721163]
[1674027323681,0.84592363,21276.0,21274.0,0.4721163]
[1674027325167,0.84592363,21276.0,21274.0,0.471045]
[1674027325941,0.84592363,21276.0,21274.0,0.001]
[1674027326191,0.321885,21275.0,21274.0,0.001]
[1674027327588,0.321885,21275.0,21273.0,0.940123]
[1674027327756,0.397885,21275.0,21274.0,0.001]
[1674027328020,0.076,21275.0,21274.0,0.001]
[1674027328285,1.09668659,21276.0,21273.0,0.940124]
[1674027328548,0.76892363,21276.0,21273.0,0.940124]
[1674027329798,0.042,21275.0,21273.0,0.942124]
[1674027330067,0.042,21275.0,21273.0,0.940124]
[1674027330327,0.042,21275.0,21273.0,0.941124]
[1674027330581,1.09668659,21276.0,21273.0,0.940124]
[1674027330833,0.042,21275.0,21273.0,0.942124]
[1674027332840,0.0168318,21274.0,21273.0,0.942124]
[1674027333595,0.0168318,21274.0,21273.0,0.940124]
[1674027334021,0.0218318,21274.0,21273.0,0.954124]
[1674027338276,0.02174459,21274.0,21273.0,0.954124]
[1674027339040,0.02174459,21274.0,21273.0,1.06667324]
[1674027339562,0.02174459,21274.0,21273.0,0.954124]
[1674027339809,0.005,21274.0,21273.0,1.06667324]
[1674027345205,0.005,21274.0,21273.0,1.66745187]
[1674027345464,0.005,21274.0,21273.0,1.67758887]
[1674027346470,0.005,21274.0,21273.0,1.35603411]
[1674027347442,0.005,21274.0,21273.0,1.66720553]
[1674027347696,0.005,21274.0,21273.0,1.18721024]
[1674027347927,0.005,21274.0,21273.0,1.34589711]
[1674027348187,0.005,21274.0,21273.0,1.18721024]
[1674027349236,0.005,21274.0,21273.0,1.35603411]
[1674027349790,0.005,21274.0,21273.0,1.17707324]
[1674027352245,0.005,21274.0,21273.0,1.18721024]
[1674027352519,0.005,21274.0,21273.0,1.67684707]
[1674027352786,0.005,21274.0,21273.0,1.56644707]
[1674027353041,0.005,21274.0,21273.0,1.55631007]
[1674027353293,0.005,21274.0,21273.0,1.56644707]
[1674027353878,0.005,21274.0,21273.0,1.23549711]
[1674027354131,0.005,21274.0,21273.0,1.55626139]
[1674027354390,0.005,21274.0,21273.0,1.56639839]
[1674027355400,0.005,21274.0,21273.0,1.55633608]
[1674027355671,0.005,21274.0,21273.0,1.93105084]
[1674027355933,0.23,21276.0,21273.0,1.93105084]
[1674027355934,0.23,21276.0,21274.0,0.00118077]
[1674027356206,0.23,21276.0,21275.0,0.72223188]
[1674027356487,0.23,21276.0,21275.0,3.07392277]
[1674027356755,0.23,21276.0,21275.0,3.39468705]
[1674027357012,0.23,21276.0,21275.0,3.16953857]
[1674027357802,0.23,21276.0,21275.0,3.39455987]
[1674027358316,0.234,21276.0,21275.0,3.33280743]
[1674027358581,0.23,21276.0,21275.0,3.28180743]
[1674027358917,0.234,21276.0,21275.0,3.33280743]
[1674027360679,0.234,21276.0,21275.0,3.44555987]
[1674027361199,0.234,21276.0,21275.0,3.16412427]
[1674027361459,0.234,21276.0,21275.0,3.33273154]
[1674027361969,0.234,21276.0,21275.0,3.16412427]
[1674027362221,0.234,21276.0,21275.0,3.44555987]
[1674027362983,0.234,21276.0,21275.0,3.22053857]
[1674027364531,0.234,21276.0,21275.0,3.33027618]
[1674027364778,0.234,21276.0,21275.0,3.04950297]
[1674027365031,0.234,21276.0,21275.0,3.09517977]
[1674027365308,0.234,21276.0,21275.0,3.04950297]
[1674027365535,0.22342709,21276.0,21275.0,3.04950297]
[1674027366320,0.00801324,21278.0,21276.0,0.1845557]
[1674027366645,0.00801324,21278.0,21277.0,2.74520716]
[1674027366848,0.00801324,21278.0,21277.0,3.37609744]
[1674027367370,0.00801324,21278.0,21277.0,3.1675623]
[1674027367626,0.01101324,21278.0,21277.0,3.1675623]
[1674027367880,0.01101324,21278.0,21277.0,3.47211188]
[1674027368139,0.00801324,21278.0,21277.0,3.47211188]
[1674027368381,0.01101324,21278.0,21277.0,3.52817253]
[1674027368636,0.01101324,21278.0,21277.0,3.52807129]
[1674027368918,0.01101324,21278.0,21277.0,3.52807836]
[1674027369440,0.01101324,21278.0,21277.0,3.22362295]
[1674027369708,0.01101324,21278.0,21277.0,3.64024729]
[1674027370743,0.01101324,21278.0,21277.0,3.52785764]
[1674027370981,0.01101324,21278.0,21277.0,3.63815764]
[1674027371239,0.01101324,21278.0,21277.0,3.16549201]
[1674027371493,0.01101324,21278.0,21277.0,3.52601327]
[1674027371742,0.01101324,21278.0,21277.0,3.63814704]
[1674027372503,0.01101324,21278.0,21277.0,3.16548611]
[1674027374294,0.01101324,21278.0,21277.0,3.63733741]
[1674027374526,0.01101324,21278.0,21277.0,3.16548611]
[1674027374764,0.01101324,21278.0,21277.0,3.33382758]
[1674027375566,0.01101324,21278.0,21277.0,3.74960428]
[1674027376067,0.00801324,21279.0,21278.0,0.15165572]
[1674027376320,0.00801324,21279.0,21278.0,2.19869341]
[1674027376584,0.00801324,21279.0,21278.0,2.20881441]
[1674027377338,0.36440386,21284.0,21279.0,0.15]
[1674027377609,0.36440386,21284.0,21280.0,1.45472287]
[1674027377869,0.36440386,21284.0,21280.0,1.44461087]
[1674027378594,0.39840386,21284.0,21280.0,1.44961087]
[1674027379120,0.39840386,21284.0,21280.0,1.414739]
[1674027379420,0.58912981,21284.0,21280.0,1.414739]
[1674027379656,0.39840386,21284.0,21280.0,1.414739]
[1674027379920,0.39840386,21284.0,21280.0,1.44961087]
[1674027380173,0.39840386,21284.0,21280.0,1.414739]
[1674027380754,0.01826783,21283.0,21280.0,1.414739]
[1674027381017,0.01826783,21283.0,21281.0,0.3]
[1674027381253,0.01826783,21283.0,21282.0,0.94987]
[1674027381515,0.01826783,21283.0,21282.0,0.93976]
[1674027381778,0.034,21284.0,21282.0,0.93976]
[1674027382323,0.52429305,21285.0,21282.0,0.93976]
[1674027382582,0.034,21283.0,21282.0,1.08483187]
[1674027382842,0.034,21283.0,21282.0,1.04996]
[1674027383101,0.00643175,21285.0,21282.0,1.360069]
[1674027383376,0.00643175,21285.0,21282.0,1.34996]
[1674027384215,0.031,21284.0,21282.0,1.35496]
[1674027384477,0.00643175,21285.0,21283.0,0.3]
[1674027384750,0.015382,21284.0,21283.0,0.769842]
[1674027385022,0.015382,21284.0,21283.0,1.709558]
[1674027385832,0.00743175,21285.0,21283.0,2.30676269]
[1674027386352,0.00643175,21285.0,21284.0,0.1093]
[1674027386366,0.03843175,21285.0,21284.0,0.1093]
[1674027386619,0.00643175,21285.0,21284.0,0.939672]
[1674027387115,0.03843175,21285.0,21284.0,0.939672]
[1674027387375,0.00643175,21285.0,21284.0,0.939672]
[1674027387637,0.00643175,21285.0,21284.0,1.42187369]
[1674027387892,0.03843175,21285.0,21284.0,1.43197469]
[1674027388663,0.03843175,21285.0,21284.0,1.72187369]
[1674027388918,0.03843175,21285.0,21284.0,1.42187369]
[1674027393013,0.03843175,21285.0,21284.0,0.944672]
[1674027399488,0.36031675,21285.0,21284.0,0.944672]
[1674027401846,0.37573627,21285.0,21284.0,0.944672]
[1674027403391,0.0537527,21285.0,21284.0,0.944672]
[1674027405242,0.01051123,21289.0,21284.0,2.47090899]
[1674027405742,0.01051123,21289.0,21287.0,0.47720169]
[1674027406018,0.01051123,21289.0,21288.0,2.17710595]
[1674027406277,0.01051123,21289.0,21288.0,2.22846559]
[1674027406539,0.01051123,21289.0,21288.0,2.41623869]
[1674027407062,0.01051123,21289.0,21288.0,2.11623869]
[1674027407568,0.01051123,21289.0,21288.0,2.51223869]
[1674027409138,0.01051123,21289.0,21288.0,2.51335613]
[1674027412784,0.01051123,21289.0,21288.0,2.40405613]
[1674027414561,0.01051123,21289.0,21288.0,2.51445613]
[1674027414845,0.0244036,21289.0,21288.0,2.62668303]
[1674027416141,0.0244036,21289.0,21288.0,2.51445613]
[1674027416652,0.0244036,21289.0,21288.0,2.10405613]
[1674027416907,0.0244036,21289.0,21288.0,2.40405613]
[1674027417918,0.0244036,21289.0,21288.0,2.10405613]
[1674027418182,0.0244036,21289.0,21288.0,2.40405613]
[1674027420025,0.0244036,21289.0,21288.0,2.10405613]
[1674027420283,0.0244036,21289.0,21288.0,2.40405613]
[1674027421374,0.0244036,21289.0,21288.0,2.10405613]
[1674027421883,0.0244036,21289.0,21288.0,2.09396313]
[1674027422679,0.0244036,21289.0,21288.0,1.98356313]
[1674027423718,0.01051123,21289.0,21288.0,1.98356313]
[1674027425103,0.01051123,21289.0,21288.0,2.28356313]
[1674027425271,0.01051123,21289.0,21288.0,1.98356313]
[1674027425536,0.01051123,21289.0,21288.0,2.28356313]
[1674027426041,0.01051123,21289.0,21288.0,1.98356313]
[1674027426629,0.01051123,21289.0,21288.0,2.28356313]
[1674027427090,0.01051123,21289.0,21288.0,2.29365113]
[1674027427344,0.01051123,21289.0,21288.0,2.28356313]
[1674027428647,0.01051123,21289.0,21288.0,1.98356313]
[1674027429678,0.01043228,21289.0,21288.0,1.98356313]
[1674027430460,0.01043228,21289.0,21288.0,1.50636144]
[1674027433051,0.01043228,21289.0,21288.0,1.80636144]
[1674027433815,0.01043228,21289.0,21288.0,1.50636144]
[1674027436606,0.01043228,21289.0,21288.0,1.80636144]
[1674027436849,0.01043228,21289.0,21288.0,1.81644944]
[1674027437102,0.01043228,21289.0,21288.0,1.92664944]
[1674027439187,0.01043228,21289.0,21288.0,1.91656144]
[1674027439713,0.01043228,21289.0,21288.0,1.61656144]
[1674027441791,0.01043228,21289.0,21288.0,1.505244]
[1674027442584,0.01043228,21289.0,21288.0,1.6174709]
[1674027442843,0.01043228,21289.0,21288.0,1.9174709]
[1674027443128,0.01043228,21289.0,21288.0,2.08581126]
[1674027443366,0.01043228,21289.0,21288.0,2.40078236]
[1674027443629,0.01043228,21289.0,21288.0,2.11086363]
[1674027443895,0.01043228,21289.0,21288.0,1.78581126]
[1674027444169,0.01043228,21289.0,21288.0,1.6174709]
[1674027444454,0.01043228,21289.0,21288.0,1.505244]
[1674027444667,0.01043228,21289.0,21288.0,1.6174709]
[1674027444916,0.01043228,21289.0,21288.0,1.78581126]
[1674027445428,0.01043228,21289.0,21288.0,1.6174709]
[1674027445958,0.01043228,21289.0,21288.0,2.10103581]
[1674027446458,0.01043228,21289.0,21288.0,1.78581126]
[1674027446722,0.01043228,21289.0,21288.0,2.10101872]
[1674027446980,0.01043228,21289.0,21288.0,1.98879182]
[1674027448217,0.01043228,21289.0,21288.0,1.61762802]
[1674027448513,0.29522211,21294.0,21288.0,3.46687181]
[1674027448757,0.29522211,21294.0,21291.0,0.28083395]
[1674027448758,0.01388492,21294.0,21291.0,0.28083395]
[1674027449007,0.01388492,21294.0,21292.0,1.91350787]
[1674027449268,0.01388492,21294.0,21293.0,0.010074]
[1674027449529,0.01388492,21294.0,21293.0,0.939274]
[1674027450879,0.01388492,21294.0,21293.0,1.033274]
[1674027452436,0.01388492,21294.0,21293.0,1.03439117]
[1674027453476,0.01388492,21294.0,21293.0,1.14429117]
[1674027453707,0.01388492,21294.0,21293.0,1.15436317]
[1674027453967,0.01388492,21294.0,21293.0,1.14429117]
[1674027455195,0.01388492,21294.0,21293.0,1.15436317]
[1674027455713,0.01388492,21294.0,21293.0,1.14429117]
[1674027455978,0.01388492,21294.0,21293.0,1.25662475]
[1674027456448,0.01388492,21294.0,21293.0,1.45436317]
[1674027457993,0.01388492,21294.0,21293.0,1.90476927]
[1674027458272,0.01388492,21294.0,21293.0,2.2573348]
[1674027458580,0.01388492,21294.0,21293.0,2.93465143]
[1674027459049,0.01388492,21294.0,21293.0,2.82229123]
[1674027459307,0.01388492,21294.0,21293.0,1.93156486]
[1674027459559,0.01388492,21294.0,21293.0,2.04356711]
[1674027460329,0.01388492,21294.0,21293.0,1.93156486]
[1674027460825,0.01388492,21294.0,21293.0,1.63156486]
[1674027462663,0.01388492,21294.0,21293.0,1.74196486]
[1674027462921,0.01388492,21294.0,21293.0,2.04196486]
[1674027464233,0.01388492,21294.0,21293.0,2.48823705]
[1674027464498,0.01388492,21294.0,21293.0,2.65673742]
[1674027464723,0.01388492,21294.0,21293.0,2.59863705]
[1674027465467,0.01388492,21294.0,21293.0,2.9945868]
[1674027465727,0.01388492,21294.0,21293.0,3.27542075]
[1674027465978,0.01388492,21294.0,21293.0,3.18142075]
[1674027466497,0.01388492,21294.0,21293.0,3.1613369]
[1674027467587,0.01388492,21294.0,21293.0,2.4856348]
[1674027467852,0.01388492,21294.0,21293.0,3.16127552]
[1674027468088,0.01388492,21294.0,21293.0,2.59749016]
[1674027468360,0.01388492,21294.0,21293.0,2.27172022]
[1674027468617,0.01388492,21294.0,21293.0,2.06686486]
[1674027468908,0.01466706,21296.0,21294.0,0.15060461]
[1674027469148,0.01466706,21296.0,21295.0,2.57637369]
[1674027469399,0.01466706,21296.0,21295.0,2.58643969]
[1674027469658,0.01466706,21296.0,21295.0,2.88643969]
[1674027469921,0.01466706,21296.0,21295.0,3.12972969]
[1674027470450,0.01466706,21296.0,21295.0,3.22272969]
[1674027470701,0.01466706,21296.0,21295.0,2.98793969]
[1674027473493,0.01466706,21296.0,21295.0,3.09979505]
[1674027473749,0.01466706,21296.0,21295.0,3.42410963]
[1674027474540,0.01466706,21296.0,21295.0,3.53596499]
[1674027477025,0.01466706,21296.0,21295.0,3.42410963]
[1674027478105,0.01343162,21298.0,21296.0,0.15044407]
[1674027478370,0.01343162,21298.0,21297.0,2.83579769]
[1674027478626,0.01343162,21298.0,21297.0,3.36122763]
[1674027479134,0.01343162,21298.0,21297.0,3.47295721]
[1674027479629,0.01816038,21303.0,21297.0,4.38073329]
[1674027479632,0.01816038,21303.0,21298.0,0.15]
[1674027479891,0.01816038,21303.0,21299.0,2.39005556]
[1674027480163,0.61302206,21303.0,21299.0,1.877982]
[1674027480455,0.61302206,21303.0,21299.0,1.408488]
[1674027480709,0.471885,21302.0,21299.0,1.408488]
[1674027480973,0.42329611,21303.0,21299.0,0.938994]
[1674027480974,0.396885,21301.0,21299.0,0.938994]
[1674027481237,0.321885,21300.0,21299.0,1.023994]
[1674027481526,0.075,21301.0,21299.0,0.94011086]
[1674027481783,0.321885,21300.0,21299.0,0.938994]
[1674027482056,0.075,21301.0,21299.0,0.938994]
[1674027482320,0.075,21302.0,21299.0,0.938994]
[1674027482842,0.49829611,21303.0,21299.0,0.938994]
[1674027483104,0.49729611,21303.0,21299.0,0.97386587]
[1674027483575,0.42229611,21303.0,21299.0,1.05986587]
[1674027483576,0.001,21302.0,21299.0,1.05986587]
[1674027483829,0.19072595,21302.0,21299.0,0.938994]
[1674027484090,0.42229611,21303.0,21299.0,1.024994]
[1674027484091,0.49729611,21303.0,21299.0,1.024994]
[1674027484661,0.321885,21302.0,21299.0,0.938994]
[1674027484892,0.3366205,21301.0,21299.0,0.938994]
[1674027485150,0.321885,21300.0,21299.0,1.024994]
[1674027485411,0.0147355,21301.0,21299.0,1.024994]
[1674027485981,0.45965077,21301.0,21299.0,0.938994]
[1674027486196,0.321885,21300.0,21299.0,1.024994]
[1674027486456,0.321885,21300.0,21299.0,0.938994]
[1674027486712,0.53395077,21301.0,21299.0,0.938994]
[1674027486990,0.53495077,21301.0,21299.0,1.024994]
[1674027487420,0.0147355,21301.0,21299.0,0.938994]
[1674027487646,0.001,21300.0,21299.0,1.024994]
[1674027488098,0.001,21300.0,21299.0,2.70136456]
[1674027488328,0.001,21300.0,21299.0,3.00076263]
[1674027488577,0.001,21300.0,21299.0,3.62822829]
[1674027488847,0.01816038,21303.0,21301.0,0.00066927]
[1674027489104,0.01816038,21303.0,21302.0,2.3617909]
[1674027489626,0.01816038,21303.0,21302.0,1.88458921]
[1674027490642,0.01816038,21303.0,21302.0,2.27758921]
[1674027492514,0.01816038,21303.0,21302.0,1.96754621]
[1674027493318,0.01816038,21303.0,21302.0,1.49810721]
[1674027494401,0.01816038,21303.0,21302.0,1.02866821]
[1674027495453,0.20888633,21303.0,21302.0,0.093]
[1674027495456,0.35818633,21303.0,21302.0,0.093]
[1674027495713,0.48934538,21303.0,21302.0,0.093]
[1674027495994,0.48934538,21303.0,21301.0,0.00066927]
[1674027496253,0.396885,21302.0,21301.0,0.00066927]
[1674027498436,0.471885,21302.0,21301.0,0.00066927]
[1674027498698,0.8946036,21302.0,21301.0,0.00666927]
[1674027499788,1.0446036,21302.0,21301.0,0.00666927]
[1674027500616,1.5140426,21302.0,21301.0,0.00666927]
[1674027501134,1.3640426,21302.0,21301.0,0.00666927]
[1674027502436,1.8334816,21302.0,21301.0,0.00666927]
[1674027503488,1.83039505,21302.0,21301.0,0.00666927]
[1674027503763,2.75112836,21302.0,21301.0,0.00666927]
[1674027504013,2.72073657,21302.0,21301.0,0.00666927]
[1674027504267,3.65991443,21302.0,21301.0,0.00666927]
[1674027504798,2.28530019,21302.0,21301.0,0.00666927]
[1674027505056,3.62431673,21302.0,21301.0,0.00666927]
[1674027505606,2.57250762,21302.0,21301.0,0.00666927]
[1674027506079,2.38486178,21302.0,21301.0,0.00666927]
[1674027506083,1.81820248,21302.0,21301.0,0.00666927]
[1674027508434,1.93055664,21302.0,21301.0,0.00666927]
[1674027508696,1.81820248,21302.0,21301.0,0.00666927]
[1674027509503,2.25976658,21302.0,21301.0,0.00666927]
[1674027510029,2.73241242,21302.0,21301.0,0.00666927]
[1674027510031,2.84476658,21302.0,21301.0,0.00666927]
[1674027510289,4.13674454,21302.0,21301.0,0.00666927]
[1674027510554,3.66541021,21302.0,21301.0,0.00666927]
[1674027510820,4.03905985,21302.0,21301.0,0.00666927]
[1674027511119,4.16457561,21302.0,21301.0,6.927e-05]
[1674027511384,0.3782725,21301.0,21296.0,0.00044407]
[1674027511651,0.1497,21297.0,21296.0,0.00044407]
[1674027511910,2.76363726,21297.0,21296.0,0.00044407]
[1674027512430,2.57291131,21297.0,21296.0,0.00044407]
[1674027512981,2.66391131,21297.0,21296.0,0.00044407]
[1674027513497,3.05084142,21297.0,21296.0,0.00044407]
[1674027514077,2.66391131,21297.0,21296.0,0.00044407]
[1674027515462,2.96391131,21297.0,21296.0,0.00044407]
[1674027515726,2.66391131,21297.0,21296.0,0.00044407]
[1674027518845,3.18782405,21297.0,21296.0,0.00044407]
[1674027519110,2.9970981,21297.0,21296.0,0.00044407]
[1674027519365,3.46429969,21297.0,21296.0,0.00044407]
[1674027519892,2.93203359,21297.0,21296.0,0.00044407]
[1674027520448,3.3020318,21297.0,21296.0,0.00044407]
[1674027520676,3.31970916,21297.0,21296.0,0.00044407]
[1674027520933,3.45873821,21297.0,21296.0,4.07e-06]
[1674027521220,3.82001207,21297.0,21296.0,4.07e-06]
[1674027521530,4.96413488,21297.0,21292.0,0.00424799]
[1674027521751,0.0747,21293.0,21292.0,0.00424799]
[1674027522029,1.880496,21293.0,21292.0,0.00424799]
[1674027522284,2.180496,21293.0,21292.0,0.00424799]
[1674027522539,2.58273577,21293.0,21292.0,0.00424799]
[1674027522862,2.58273577,21293.0,21292.0,4.799e-05]
[1674027522863,2.87613577,21293.0,21292.0,4.799e-05]
[1674027523082,2.87613577,21293.0,21290.0,0.00494492]
[1674027523083,0.15,21292.0,21290.0,0.00494492]
[1674027523356,1.411049,21291.0,21290.0,0.00494492]
[1674027523621,1.711049,21291.0,21290.0,0.00494492]
[1674027523882,1.90177495,21291.0,21290.0,0.00494492]
[1674027524142,2.32417518,21291.0,21290.0,0.00494492]
[1674027524958,2.41617518,21291.0,21290.0,0.00494492]
[1674027525215,2.003949,21291.0,21290.0,0.00494492]
[1674027525522,2.095949,21291.0,21290.0,0.00494492]
[1674027526019,2.45122076,21291.0,21290.0,0.00494492]
[1674027527113,2.095949,21291.0,21290.0,0.00494492]
[1674027527885,2.49450994,21291.0,21290.0,4.92e-06]
[1674027528144,3.55353579,21291.0,21290.0,4.92e-06]
[1674027529483,4.03073748,21291.0,21290.0,4.92e-06]
[1674027532539,3.35618075,21291.0,21290.0,4.92e-06]
[1674027533584,3.35618075,21291.0,21287.0,0.00424799]
[1674027533585,6e-05,21289.0,21287.0,0.00424799]
[1674027533847,2.636377,21288.0,21287.0,0.00424799]
[1674027534107,3.33090605,21288.0,21287.0,0.00424799]
[1674027534372,3.78514542,21288.0,21287.0,0.00424799]
[1674027534650,4.17804542,21288.0,21287.0,0.00424799]
[1674027535193,3.82430605,21288.0,21287.0,0.00424799]
[1674027535459,3.777277,21288.0,21287.0,0.00424799]
[1674027536254,4.30150774,21288.0,21287.0,0.00424799]
[1674027537341,4.30150774,21288.0,21287.0,7.99e-06]
[1674027537556,4.74350168,21288.0,21287.0,7.99e-06]
[1674027537818,5.21760385,21288.0,21287.0,7.99e-06]
[1674027539127,3.23930605,21288.0,21287.0,0.03487986]
[1674027539382,3.23930605,21288.0,21287.0,7.99e-06]
[1674027540679,3.492277,21288.0,21287.0,7.99e-06]
[1674027552215,1.898629,21288.0,21287.0,7.99e-06]
[1674027552473,2.0932008,21288.0,21287.0,7.99e-06]
[1674027552771,1.898629,21288.0,21287.0,7.99e-06]
[1674027553736,2.198629,21288.0,21287.0,7.99e-06]
[1674027554263,2.123129,21288.0,21287.0,7.99e-06]
[1674027558117,1.803129,21288.0,21287.0,7.99e-06]
[1674027559746,1.711129,21288.0,21287.0,7.99e-06]
[1674027560018,1.794129,21288.0,21287.0,0.00100799]
[1674027560827,1.324381,21288.0,21287.0,0.00100799]
[1674027563968,2.15712517,21288.0,21287.0,0.00100799]
[1674027564227,3.14944716,21288.0,21287.0,0.00100799]
[1674027564535,3.26196051,21288.0,21287.0,0.00100799]
[1674027564810,3.00036843,21288.0,21287.0,0.00100799]
[1674027565313,3.09404229,21288.0,21287.0,0.00100799]
[1674027566112,3.20646913,21288.0,21287.0,0.00100799]
[1674027566878,3.47924471,21288.0,21287.0,0.00100799]
[1674027567155,4.31501461,21288.0,21287.0,0.00100799]
[1674027567416,4.74208773,21288.0,21287.0,0.00100799]
[1674027567669,4.48572845,21288.0,21287.0,0.00100799]
[1674027571339,4.76717612,21288.0,21287.0,0.00100799]
[1674027571596,4.72014707,21288.0,21287.0,0.00100799]
[1674027572103,4.4386994,21288.0,21287.0,0.00100799]
[1674027573171,4.76355799,21288.0,21287.0,0.00100799]
[1674027573720,5.10096828,21288.0,21287.0,0.00100799]
[1674027574012,4.66274833,21288.0,21287.0,0.00064789]
[1674027574268,5.13042089,21288.0,21287.0,0.00064789]
[1674027574538,5.17744994,21288.0,21287.0,0.00064789]
[1674027574802,4.70977738,21288.0,21287.0,0.00064789]
[1674027575299,5.06437583,21288.0,21287.0,0.00064789]
[1674027575300,4.72696554,21288.0,21287.0,0.00064789]
[1674027576089,5.06437583,21288.0,21287.0,0.00064789]
[1674027579531,5.01734678,21288.0,21287.0,0.00064789]
[1674027580051,4.67993649,21288.0,21287.0,0.00064789]
[1674027582896,4.60493649,21288.0,21287.0,0.00064789]
[1674027586659,3.49747573,21288.0,21287.0,0.03551976]
[1674027586946,3.09280894,21288.0,21287.0,0.00064789]
[1674027587211,3.14908795,21288.0,21287.0,0.00064789]
[1674027587474,3.03651436,21288.0,21287.0,0.00064789]
[1674027587732,3.14907542,21288.0,21287.0,0.00064789]
[1674027587987,3.03651436,21288.0,21287.0,0.00064789]
[1674027588489,3.14907371,21288.0,21287.0,0.00064789]
[1674027588491,2.98021288,21288.0,21287.0,0.00064789]
[1674027588759,3.43779848,21288.0,21287.0,0.00064789]
[1674027589026,3.26166977,21288.0,21287.0,0.00064789]
[1674027589804,3.39280894,21288.0,21287.0,0.00064789]
[1674027590314,3.53704692,21288.0,21287.0,0.00064789]
[1674027590578,3.25560821,21288.0,21287.0,0.00064789]
[1674027590853,3.53704763,21288.0,21287.0,0.00064789]
[1674027591102,3.83704763,21288.0,21287.0,0.00064789]
[1674027591358,3.39280894,21288.0,21287.0,0.00064789]
[1674027591618,3.83704431,21288.0,21287.0,0.00064789]
[1674027591874,3.55560489,21288.0,21287.0,0.00064789]
[1674027592167,3.53704794,21288.0,21287.0,0.00064789]
[1674027592407,3.26165642,21288.0,21287.0,0.00064789]
[1674027592927,3.91592629,21288.0,21287.0,0.00064789]
[1674027593195,3.61089794,21288.0,21287.0,0.00064789]
[1674027593701,3.83603204,21288.0,21287.0,0.00064789]
[1674027593704,3.39278763,21288.0,21287.0,0.00064789]
[1674027593969,3.56163602,21288.0,21287.0,0.00064789]
[1674027594871,3.26163393,21288.0,21287.0,0.00064789]
[1674027595047,3.03649983,21288.0,21287.0,0.00064789]
[1674027595572,4.20061092,21288.0,21287.0,0.00064789]
[1674027595830,0.15,21287.0,21281.0,0.08134405]
[1674027596128,0.11256776,21285.0,21281.0,0.00634405]
[1674027596390,1.45228295,21284.0,21281.0,0.00634405]
[1674027596657,0.321877,21283.0,21281.0,0.00634405]
[1674027596918,0.469858,21283.0,21281.0,0.00634405]
[1674027597442,1.13042195,21284.0,21281.0,0.00634405]
[1674027597698,0.939696,21284.0,21281.0,0.08234405]
[1674027597960,0.939696,21284.0,21281.0,0.08134405]
[1674027598221,0.009,21283.0,21281.0,0.08234405]
[1674027598478,1.41089857,21284.0,21281.0,0.08134405]
[1674027598784,1.42089857,21284.0,21281.0,0.08234405]
[1674027599218,0.95104357,21284.0,21281.0,0.08234405]
[1674027599728,0.94104357,21284.0,21281.0,0.08134405]
[1674027599989,1.00704357,21284.0,21281.0,0.08134405]
[1674027601511,0.06462222,21284.0,21283.0,0.075]
[1674027602280,0.06462222,21284.0,21283.0,0.544858]
[1674027602812,0.8419773,21287.0,21283.0,0.544858]
[1674027603077,0.088,21284.0,21283.0,0.50472987]
[1674027603356,0.088,21284.0,21283.0,0.544858]
[1674027603892,0.8419773,21287.0,21283.0,0.544858]
[1674027604145,0.8419773,21287.0,21284.0,0.075]
[1674027604393,0.3721923,21287.0,21284.0,0.10987187]
[1674027604640,0.3721923,21287.0,21284.0,0.075]
[1674027605969,0.4611923,21287.0,21284.0,0.075]
[1674027606230,0.3721923,21287.0,21284.0,0.075]
[1674027606532,0.089,21287.0,21284.0,0.10987187]
[1674027606790,0.089,21287.0,21286.0,0.075]
[1674027607313,0.880647,21287.0,21286.0,0.075]
[1674027607867,0.410877,21287.0,21286.0,0.075]
[1674027608142,0.321877,21287.0,21286.0,0.075]
[1674027608398,1.13329007,21288.0,21286.0,0.075]
[1674027608921,0.321877,21287.0,21286.0,0.075]
[1674027609213,0.410877,21287.0,21286.0,0.075]
[1674027609474,0.321877,21287.0,21286.0,0.075]
[1674027610261,0.089,21287.0,21286.0,0.075]
[1674027611032,0.410877,21287.0,21286.0,0.075]
[1674027611558,0.410877,21287.0,21286.0,0.07472373]
[1674027611837,0.560877,21287.0,21284.0,0.075]
[1674027612109,0.321877,21286.0,21284.0,0.075]
[1674027612370,0.558774,21287.0,21284.0,0.075]
[1674027612621,0.469774,21287.0,21284.0,0.075]
[1674027612880,0.558774,21287.0,21284.0,0.075]
[1674027615212,0.708774,21287.0,21284.0,0.075]
[1674027615475,0.558774,21287.0,21284.0,0.075]
[1674027615742,0.708774,21287.0,21284.0,0.075]
[1674027616017,0.321877,21286.0,21284.0,0.075]